[Event "Early-Titled-Tuesday-Blitz-October-24-2023"]
[Site "Chess.com"]
[Date "2023.10.24"]
[Round "5"]
[White "js20000"]
[Black "lefonghua"]
[Result "0-1"]
[WhiteElo "2895"]
[BlackElo "2676"]
[TimeControl "180+1"]
[EndTime "8:55:35 PDT"]
[Termination "lefonghua won by resignation"]

1. Nf3 {[%clk 0:03:00.9]} 1... Nf6 {[%clk 0:03:00.1]} 2. c3 {[%clk 0:02:56.8]}
2... g6 {[%clk 0:02:58.4]} 3. d4 {[%clk 0:02:56.6]} 3... Bg7 {[%clk 0:02:58.9]}
4. Bf4 {[%clk 0:02:56.8]} 4... O-O {[%clk 0:02:57.3]} 5. h3 {[%clk 0:02:56.6]}
5... d6 {[%clk 0:02:57.7]} 6. Nbd2 {[%clk 0:02:56.2]} 6... b6 {[%clk 0:02:56.2]}
7. Bh2 {[%clk 0:02:55.3]} 7... c5 {[%clk 0:02:56.2]} 8. e4 {[%clk 0:02:53.4]}
8... Bb7 {[%clk 0:02:55.4]} 9. Bd3 {[%clk 0:02:53.4]} 9... Nc6 {[%clk
0:02:50.2]} 10. O-O {[%clk 0:02:49.7]} 10... cxd4 {[%clk 0:02:47.2]} 11. cxd4
{[%clk 0:02:50.6]} 11... e5 {[%clk 0:02:46.5]} 12. d5 {[%clk 0:02:49.2]} 12...
Nb4 {[%clk 0:02:44.3]} 13. Bc4 {[%clk 0:02:49.6]} 13... a5 {[%clk 0:02:43.6]}
14. Re1 {[%clk 0:02:45.6]} 14... Rc8 {[%clk 0:02:34.1]} 15. a3 {[%clk
0:02:42.4]} 15... Na6 {[%clk 0:02:33.7]} 16. Rb1 {[%clk 0:02:36.5]} 16... Nc5
{[%clk 0:02:20.8]} 17. b4 {[%clk 0:02:36.5]} 17... axb4 {[%clk 0:02:21]} 18.
axb4 {[%clk 0:02:36.2]} 18... Ncxe4 {[%clk 0:02:15.6]} 19. Nxe4 {[%clk
0:02:25.4]} 19... Rxc4 {[%clk 0:02:14.6]} 20. Nxf6+ {[%clk 0:02:24.7]} 20...
Qxf6 {[%clk 0:02:07.9]} 21. Qa4 {[%clk 0:02:11.4]} 21... Bxd5 {[%clk 0:02:04.5]}
22. Qb5 {[%clk 0:02:10.7]} 22... Be6 {[%clk 0:01:36.5]} 23. Qxb6 {[%clk
0:02:09.5]} 23... Qd8 {[%clk 0:01:30.8]} 24. Qxd8 {[%clk 0:02:01.4]} 24... Rxd8
{[%clk 0:01:31.7]} 25. Rbd1 {[%clk 0:02:01.1]} 25... Rd7 {[%clk 0:01:20]} 26.
Ng5 {[%clk 0:02:00]} 26... Rxb4 {[%clk 0:01:15.5]} 27. Nxe6 {[%clk 0:01:58.9]}
27... fxe6 {[%clk 0:01:16.4]} 28. Bxe5 {[%clk 0:01:58.4]} 28... Bxe5 {[%clk
0:01:13.3]} 29. Rxe5 {[%clk 0:01:55.5]} 29... Kf7 {[%clk 0:01:14]} 30. Re3
{[%clk 0:01:54.9]} 30... d5 {[%clk 0:01:10.8]} 31. Red3 {[%clk 0:01:47.6]} 31...
d4 {[%clk 0:01:07.8]} 32. f3 {[%clk 0:01:41.9]} 32... e5 {[%clk 0:01:07]} 33.
Re1 {[%clk 0:01:40.4]} 33... Kf6 {[%clk 0:01:06.4]} 34. Ra3 {[%clk 0:01:32.1]}
34... Rd6 {[%clk 0:01:03.6]} 35. Ra8 {[%clk 0:01:30.6]} 35... d3 {[%clk
0:00:53.8]} 36. Rf8+ {[%clk 0:01:27.6]} 36... Kg7 {[%clk 0:00:53.5]} 37. Re8
{[%clk 0:01:24.8]} 37... d2 {[%clk 0:00:52.8]} 38. Rd1 {[%clk 0:01:24.7]} 38...
Kf6 {[%clk 0:00:51.3]} 39. Kf2 {[%clk 0:01:24.6]} 39... h5 {[%clk 0:00:46.8]}
40. Ke2 {[%clk 0:01:17.3]} 40... Rb2 {[%clk 0:00:42.1]} 41. Rf8+ {[%clk
0:01:16.1]} 41... Ke7 {[%clk 0:00:40.8]} 42. Rc8 {[%clk 0:01:14.9]} 42... h4
{[%clk 0:00:37.9]} 43. Rh8 {[%clk 0:01:10]} 43... Rd4 {[%clk 0:00:32.6]} 44. Rg8
{[%clk 0:01:07.4]} 44... Kf7 {[%clk 0:00:32.4]} 45. Rc8 {[%clk 0:01:06.7]} 45...
Rd6 {[%clk 0:00:30.3]} 46. Rc4 {[%clk 0:01:06.2]} 46... g5 {[%clk 0:00:30.6]}
47. Re4 {[%clk 0:01:05.4]} 47... Kf6 {[%clk 0:00:30.9]} 48. Re3 {[%clk 0:01:06]}
48... Kf5 {[%clk 0:00:31.2]} 49. Re4 {[%clk 0:01:05.5]} 49... Rd4 {[%clk
0:00:26.5]} 50. Ke3 {[%clk 0:00:47.6]} 50... Rb3+ {[%clk 0:00:20.3]} 51. Kf2
{[%clk 0:00:47.8]} 51... Rxe4 {[%clk 0:00:17.7]} 52. fxe4+ {[%clk 0:00:48.7]}
52... Kxe4 {[%clk 0:00:18.5]} 53. Rxd2 {[%clk 0:00:48.9]} 53... Kf4 {[%clk
0:00:18.8]} 54. Kf1 {[%clk 0:00:40.7]} 54... e4 {[%clk 0:00:18.3]} 55. Rf2+
{[%clk 0:00:39]} 55... Ke3 {[%clk 0:00:18.1]} 56. Re2+ {[%clk 0:00:37.3]} 56...
Kd3 {[%clk 0:00:18.6]} 57. Re1 {[%clk 0:00:33.2]} 57... Rb2 {[%clk 0:00:18.5]}
58. Kg1 {[%clk 0:00:32.8]} 58... e3 {[%clk 0:00:17.6]} 59. Kf1 {[%clk
0:00:33.1]} 59... Rd2 {[%clk 0:00:16.5]} 60. Ra1 {[%clk 0:00:32.3]} 60... e2+
{[%clk 0:00:16]} 61. Ke1 {[%clk 0:00:32.3]} 61... Ke3 {[%clk 0:00:14.7]} 62.
Ra3+ {[%clk 0:00:29.4]} 62... Rd3 {[%clk 0:00:14.6]} 63. Rxd3+ {[%clk
0:00:24.3]} 63... Kxd3 {[%clk 0:00:15.5]} 64. g4 {[%clk 0:00:24.8]} 64... hxg3
{[%clk 0:00:15.3]} 65. h4 {[%clk 0:00:25.7]} 65... g2 {[%clk 0:00:15.8]} 0-1

[Event "Early-Titled-Tuesday-Blitz-October-24-2023"]
[Site "Chess.com"]
[Date "2023.10.24"]
[Round "5"]
[White "itsdsyr"]
[Black "N4700000"]
[Result "0-1"]
[WhiteElo "2293"]
[BlackElo "2537"]
[TimeControl "180+1"]
[EndTime "8:55:42 PDT"]
[Termination "N4700000 won by resignation"]

1. d4 {[%clk 0:02:58.7]} 1... Nf6 {[%clk 0:02:57.5]} 2. c4 {[%clk 0:02:57.7]}
2... g6 {[%clk 0:02:57.8]} 3. Nf3 {[%clk 0:02:57.2]} 3... Bg7 {[%clk 0:02:58]}
4. g3 {[%clk 0:02:57.7]} 4... O-O {[%clk 0:02:57.7]} 5. Bg2 {[%clk 0:02:58.4]}
5... d6 {[%clk 0:02:55.3]} 6. O-O {[%clk 0:02:58.7]} 6... Nc6 {[%clk 0:02:51.4]}
7. Nc3 {[%clk 0:02:58.5]} 7... a6 {[%clk 0:02:50.8]} 8. b3 {[%clk 0:02:58.3]}
8... Rb8 {[%clk 0:02:49.5]} 9. a4 {[%clk 0:02:58.4]} 9... e5 {[%clk 0:02:23.5]}
10. d5 {[%clk 0:02:49.8]} 10... Nd4 {[%clk 0:02:21.4]} 11. Bb2 {[%clk
0:02:32.7]} 11... Nxf3+ {[%clk 0:02:11.9]} 12. Bxf3 {[%clk 0:02:29.8]} 12... a5
{[%clk 0:02:10.4]} 13. Nb5 {[%clk 0:02:15.5]} 13... Bh3 {[%clk 0:02:02]} 14. Bg2
{[%clk 0:02:15.1]} 14... Bxg2 {[%clk 0:02:01.4]} 15. Kxg2 {[%clk 0:02:16]} 15...
Nd7 {[%clk 0:02:01.5]} 16. Bc3 {[%clk 0:02:09.6]} 16... b6 {[%clk 0:02:00.9]}
17. Rb1 {[%clk 0:02:10.1]} 17... Nc5 {[%clk 0:02:00.2]} 18. b4 {[%clk
0:02:07.7]} 18... axb4 {[%clk 0:01:58.1]} 19. Bxb4 {[%clk 0:02:08.6]} 19... Ra8
{[%clk 0:01:56.1]} 20. Bxc5 {[%clk 0:02:03.4]} 20... dxc5 {[%clk 0:01:40.9]} 21.
Rb3 {[%clk 0:01:55.6]} 21... Rxa4 {[%clk 0:01:36.4]} 22. Rc3 {[%clk 0:01:48.5]}
22... Ra2 {[%clk 0:01:31]} 23. Rc2 {[%clk 0:01:47.6]} 23... Ra4 {[%clk
0:01:16.3]} 24. Qd3 {[%clk 0:01:38.7]} 24... f5 {[%clk 0:01:12.3]} 25. Rd1
{[%clk 0:01:38.1]} 25... e4 {[%clk 0:01:11.9]} 26. Qb3 {[%clk 0:01:37.3]} 26...
Rb4 {[%clk 0:01:09.8]} 27. Qa3 {[%clk 0:01:37.6]} 27... f4 {[%clk 0:00:56.8]}
28. f3 {[%clk 0:01:19.1]} 28... exf3+ {[%clk 0:00:46.3]} 29. exf3 {[%clk
0:01:20]} 29... fxg3 {[%clk 0:00:43.5]} 30. hxg3 {[%clk 0:01:20.9]} 30... Qe7
{[%clk 0:00:22.7]} 31. Qd3 {[%clk 0:01:16.9]} 31... Be5 {[%clk 0:00:19.8]} 32.
f4 {[%clk 0:01:11.2]} 32... Bd6 {[%clk 0:00:19.6]} 33. Re2 {[%clk 0:01:10.6]}
33... Qf7 {[%clk 0:00:18.4]} 34. Rde1 {[%clk 0:01:07.1]} 34... Qf5 {[%clk
0:00:16.9]} 35. Qf3 {[%clk 0:00:41.5]} 35... Rxc4 {[%clk 0:00:15.9]} 36. Na7
{[%clk 0:00:30.3]} 36... Rc2 {[%clk 0:00:15.2]} 37. Nc6 {[%clk 0:00:29.9]} 37...
Rxe2+ {[%clk 0:00:15.2]} 38. Rxe2 {[%clk 0:00:30.8]} 38... c4 {[%clk 0:00:14.9]}
39. Nd4 {[%clk 0:00:27.1]} 39... Qd3 {[%clk 0:00:15.3]} 40. Ne6 {[%clk
0:00:14.9]} 40... Qxf3+ {[%clk 0:00:14.5]} 41. Kxf3 {[%clk 0:00:15.8]} 41... Ra8
{[%clk 0:00:14]} 42. Kg4 {[%clk 0:00:12]} 42... b5 {[%clk 0:00:13.8]} 43. Nd4
{[%clk 0:00:11.7]} 43... b4 {[%clk 0:00:13.7]} 44. Ne6 {[%clk 0:00:12.2]} 44...
b3 {[%clk 0:00:13.7]} 45. Ng5 {[%clk 0:00:11.7]} 45... c3 {[%clk 0:00:13.4]} 46.
Ne4 {[%clk 0:00:09.4]} 46... c2 {[%clk 0:00:13.7]} 47. Re1 {[%clk 0:00:06.9]}
47... b2 {[%clk 0:00:14.1]} 48. Nc3 {[%clk 0:00:06.8]} 48... c1=Q {[%clk
0:00:14.4]} 49. Rxc1 {[%clk 0:00:06.8]} 49... bxc1=Q {[%clk 0:00:15.3]} 50. Ne4
{[%clk 0:00:07.7]} 50... Qd1+ {[%clk 0:00:15.4]} 0-1

[Event "Early-Titled-Tuesday-Blitz-October-24-2023"]
[Site "Chess.com"]
[Date "2023.10.24"]
[Round "5"]
[White "GroovyKettle"]
[Black "Sokoloco"]
[Result "1-0"]
[WhiteElo "2980"]
[BlackElo "2731"]
[TimeControl "180+1"]
[EndTime "8:55:45 PDT"]
[Termination "GroovyKettle won by resignation"]

1. e4 {[%clk 0:02:51.1]} 1... d6 {[%clk 0:03:00.9]} 2. Nf3 {[%clk 0:02:49.4]}
2... g6 {[%clk 0:03:01.4]} 3. d4 {[%clk 0:02:49.3]} 3... Bg7 {[%clk 0:03:02]} 4.
Bc4 {[%clk 0:02:49.9]} 4... e6 {[%clk 0:03:02]} 5. Bb3 {[%clk 0:02:49.6]} 5...
Nf6 {[%clk 0:03:02.3]} 6. O-O {[%clk 0:02:50.3]} 6... Nxe4 {[%clk 0:02:46.8]} 7.
Re1 {[%clk 0:02:50.3]} 7... d5 {[%clk 0:02:35]} 8. c4 {[%clk 0:02:46.9]} 8...
O-O {[%clk 0:02:35]} 9. Nc3 {[%clk 0:02:47.6]} 9... Nxc3 {[%clk 0:02:29.9]} 10.
bxc3 {[%clk 0:02:48.5]} 10... dxc4 {[%clk 0:02:20.8]} 11. Bxc4 {[%clk
0:02:49.4]} 11... c5 {[%clk 0:02:19.5]} 12. Bg5 {[%clk 0:02:45.3]} 12... Qc7
{[%clk 0:02:20.1]} 13. Rc1 {[%clk 0:02:45.2]} 13... cxd4 {[%clk 0:02:05.9]} 14.
cxd4 {[%clk 0:02:44.9]} 14... Nc6 {[%clk 0:02:06.3]} 15. d5 {[%clk 0:02:35.7]}
15... exd5 {[%clk 0:02:03.7]} 16. Bxd5 {[%clk 0:02:36.6]} 16... Qa5 {[%clk
0:00:45.4]} 17. Be7 {[%clk 0:02:05.5]} 17... Nxe7 {[%clk 0:00:43.8]} 18. Rxe7
{[%clk 0:02:06.4]} 18... Bf6 {[%clk 0:00:23.8]} 19. Rec7 {[%clk 0:02:03.8]}
19... Bg4 {[%clk 0:00:18.9]} 20. Qb3 {[%clk 0:02:00.3]} 20... Rac8 {[%clk
0:00:12.9]} 21. Bxf7+ {[%clk 0:01:59.4]} 21... Kh8 {[%clk 0:00:13.3]} 22. Rxc8
{[%clk 0:01:42]} 22... Rxc8 {[%clk 0:00:14.2]} 23. Rxc8+ {[%clk 0:01:31.6]}
23... Bxc8 {[%clk 0:00:15.1]} 24. Be6 {[%clk 0:01:20.2]} 24... Qc7 {[%clk
0:00:14.5]} 25. g3 {[%clk 0:01:17.8]} 25... Kg7 {[%clk 0:00:10.6]} 26. Bxc8
{[%clk 0:01:10]} 26... Qxc8 {[%clk 0:00:11.5]} 27. h4 {[%clk 0:01:08.1]} 27...
Qc6 {[%clk 0:00:11.6]} 28. Nh2 {[%clk 0:01:08.1]} 28... Qc1+ {[%clk 0:00:10.6]}
29. Kg2 {[%clk 0:01:08.2]} 29... Qc6+ {[%clk 0:00:11.4]} 30. Kf1 {[%clk
0:01:05.2]} 30... Qc1+ {[%clk 0:00:11.3]} 31. Ke2 {[%clk 0:01:05.4]} 31... Qc6
{[%clk 0:00:09.2]} 32. Nf3 {[%clk 0:00:56.3]} 32... Qe4+ {[%clk 0:00:08.7]} 33.
Kf1 {[%clk 0:00:56.5]} 33... h5 {[%clk 0:00:06.7]} 34. Kg1 {[%clk 0:00:49.6]}
34... Qc6 {[%clk 0:00:06.5]} 35. Qd3 {[%clk 0:00:44.8]} 35... b5 {[%clk
0:00:05.9]} 36. Nd2 {[%clk 0:00:42.5]} 36... Qc1+ {[%clk 0:00:04.6]} 37. Kg2
{[%clk 0:00:42.4]} 37... Qc6+ {[%clk 0:00:05.2]} 38. Kf1 {[%clk 0:00:42.3]}
38... a5 {[%clk 0:00:05.2]} 39. Ne4 {[%clk 0:00:33.2]} 39... b4 {[%clk
0:00:05.1]} 40. Kg1 {[%clk 0:00:29]} 40... a4 {[%clk 0:00:04.8]} 41. Nxf6 {[%clk
0:00:25.2]} 41... Qxf6 {[%clk 0:00:05]} 42. Qd7+ {[%clk 0:00:25.4]} 42... Kh6
{[%clk 0:00:05.5]} 43. Qxa4 {[%clk 0:00:26.3]} 43... Qa1+ {[%clk 0:00:05.2]} 44.
Kg2 {[%clk 0:00:26.4]} 44... Qc3 {[%clk 0:00:05.5]} 45. Qa8 {[%clk 0:00:26.1]}
45... Qb2 {[%clk 0:00:04.8]} 46. Qg8 {[%clk 0:00:21.8]} 46... Qf6 {[%clk
0:00:03.7]} 47. Kg1 {[%clk 0:00:18.3]} 47... Qa1+ {[%clk 0:00:03.8]} 48. Kh2
{[%clk 0:00:19]} 48... Qf6 {[%clk 0:00:04.5]} 49. Kg2 {[%clk 0:00:19.7]} 49...
Qc6+ {[%clk 0:00:04.7]} 50. Kg1 {[%clk 0:00:20.2]} 50... Qf6 {[%clk 0:00:03.7]}
51. Qc4 {[%clk 0:00:17.9]} 51... Qa1+ {[%clk 0:00:04]} 52. Kg2 {[%clk
0:00:18.3]} 52... Qb2 {[%clk 0:00:04.2]} 53. Kf3 {[%clk 0:00:18.2]} 53... Kg7
{[%clk 0:00:03.9]} 54. Ke3 {[%clk 0:00:18]} 54... Qa3+ {[%clk 0:00:03.6]} 55.
Ke4 {[%clk 0:00:17.8]} 55... Qb2 {[%clk 0:00:03.8]} 56. Qd4+ {[%clk 0:00:18.3]}
56... Qxd4+ {[%clk 0:00:03.4]} 57. Kxd4 {[%clk 0:00:19.2]} 57... Kf6 {[%clk
0:00:02.7]} 58. Kc4 {[%clk 0:00:19.7]} 58... g5 {[%clk 0:00:03.6]} 59. hxg5+
{[%clk 0:00:19.9]} 59... Kxg5 {[%clk 0:00:04.5]} 60. Kxb4 {[%clk 0:00:20]} 60...
Kg4 {[%clk 0:00:05.4]} 61. a4 {[%clk 0:00:19.8]} 61... Kf3 {[%clk 0:00:06.3]}
62. a5 {[%clk 0:00:20]} 62... Kxf2 {[%clk 0:00:07.2]} 63. a6 {[%clk 0:00:20.4]}
63... Kxg3 {[%clk 0:00:08.1]} 64. a7 {[%clk 0:00:21]} 64... h4 {[%clk 0:00:09]}
65. a8=Q {[%clk 0:00:21.6]} 65... h3 {[%clk 0:00:09.9]} 66. Qh1 {[%clk
0:00:21.8]} 1-0

[Event "Early-Titled-Tuesday-Blitz-October-24-2023"]
[Site "Chess.com"]
[Date "2023.10.24"]
[Round "5"]
[White "Estrategia_vs_Tactica"]
[Black "Mikhail_Golubev"]
[Result "0-1"]
[WhiteElo "2270"]
[BlackElo "2527"]
[TimeControl "180+1"]
[EndTime "8:55:48 PDT"]
[Termination "Mikhail_Golubev won by resignation"]

1. e4 {[%clk 0:02:59.5]} 1... c5 {[%clk 0:02:59.2]} 2. Nf3 {[%clk 0:02:58.1]}
2... g6 {[%clk 0:02:58.9]} 3. d4 {[%clk 0:02:49.2]} 3... cxd4 {[%clk 0:02:57.5]}
4. Nxd4 {[%clk 0:02:50.1]} 4... Nf6 {[%clk 0:02:57.2]} 5. f3 {[%clk 0:02:49.2]}
5... Bg7 {[%clk 0:02:37.4]} 6. c4 {[%clk 0:02:48.8]} 6... O-O {[%clk 0:02:30]}
7. Nc3 {[%clk 0:02:48.5]} 7... e6 {[%clk 0:02:18]} 8. Nb3 {[%clk 0:02:28.8]}
8... Nc6 {[%clk 0:02:02.5]} 9. Be3 {[%clk 0:02:24.2]} 9... d5 {[%clk 0:01:56.8]}
10. Be2 {[%clk 0:01:46.4]} 10... Nxe4 {[%clk 0:01:23.2]} 11. fxe4 {[%clk
0:01:42.8]} 11... d4 {[%clk 0:01:22.8]} 12. Bd2 {[%clk 0:01:39.7]} 12... dxc3
{[%clk 0:01:22.1]} 13. Bxc3 {[%clk 0:01:37.2]} 13... Qh4+ {[%clk 0:01:12.5]} 14.
g3 {[%clk 0:01:34.9]} 14... Qxe4 {[%clk 0:01:09.6]} 15. Rf1 {[%clk 0:01:35.5]}
15... Bxc3+ {[%clk 0:01:08]} 16. bxc3 {[%clk 0:01:34]} 16... Rd8 {[%clk
0:01:01.9]} 17. Qb1 {[%clk 0:01:22.5]} 17... Qe3 {[%clk 0:00:55.7]} 18. Qc1
{[%clk 0:01:20.3]} 18... Qxc1+ {[%clk 0:00:48.1]} 19. Rxc1 {[%clk 0:01:19.1]}
19... Bd7 {[%clk 0:00:37.2]} 20. Nc5 {[%clk 0:01:10.9]} 20... b6 {[%clk
0:00:33.3]} 21. Ne4 {[%clk 0:01:10.9]} 21... Kg7 {[%clk 0:00:29.8]} 22. Rd1
{[%clk 0:01:08.9]} 22... Ne5 {[%clk 0:00:28]} 23. Rd4 {[%clk 0:00:42.8]} 23...
Bc6 {[%clk 0:00:27.3]} 24. Nd6 {[%clk 0:00:39.3]} 24... Rd7 {[%clk 0:00:26.6]}
25. Kf2 {[%clk 0:00:33.9]} 25... Rad8 {[%clk 0:00:25.4]} 26. Rfd1 {[%clk
0:00:34]} 26... Kf8 {[%clk 0:00:24.7]} 27. Ke3 {[%clk 0:00:28.2]} 27... Ke7
{[%clk 0:00:22.4]} 28. Ne4 {[%clk 0:00:28.4]} 28... Bxe4 {[%clk 0:00:19.1]} 29.
Kxe4 {[%clk 0:00:28.5]} 29... Nc6 {[%clk 0:00:18]} 30. Rxd7+ {[%clk 0:00:23.8]}
30... Rxd7 {[%clk 0:00:18.9]} 31. Rxd7+ {[%clk 0:00:19.2]} 31... Kxd7 {[%clk
0:00:19.8]} 32. h4 {[%clk 0:00:18.8]} 32... Kd6 {[%clk 0:00:17.5]} 33. g4 {[%clk
0:00:18.6]} 33... Ne5 {[%clk 0:00:14.3]} 34. g5 {[%clk 0:00:19.2]} 34... Nd7
{[%clk 0:00:13.2]} 35. a3 {[%clk 0:00:19]} 35... f6 {[%clk 0:00:12.6]} 36. Kf4
{[%clk 0:00:18.3]} 36... f5 {[%clk 0:00:11.2]} 37. Ke3 {[%clk 0:00:18.1]} 37...
e5 {[%clk 0:00:12]} 38. Bf1 {[%clk 0:00:17.7]} 38... Nc5 {[%clk 0:00:12.2]} 39.
Bg2 {[%clk 0:00:17.9]} 39... Ne6 {[%clk 0:00:12.1]} 40. Bd5 {[%clk 0:00:17.3]}
40... Nf4 {[%clk 0:00:11.6]} 41. Bg8 {[%clk 0:00:17.3]} 41... Ng2+ {[%clk
0:00:10]} 42. Kf2 {[%clk 0:00:16.8]} 42... Nf4 {[%clk 0:00:06.1]} 43. Ke3 {[%clk
0:00:16.8]} 43... Ng2+ {[%clk 0:00:03.2]} 44. Kf2 {[%clk 0:00:16.8]} 44... Nxh4
{[%clk 0:00:03.8]} 45. Bxh7 {[%clk 0:00:17.5]} 45... f4 {[%clk 0:00:02.9]} 46.
Bg8 {[%clk 0:00:16]} 46... e4 {[%clk 0:00:03.1]} 47. Bf7 {[%clk 0:00:16.2]}
47... Ke5 {[%clk 0:00:03.6]} 48. Be8 {[%clk 0:00:15.5]} 48... e3+ {[%clk
0:00:04]} 49. Ke2 {[%clk 0:00:15.7]} 49... Kf5 {[%clk 0:00:04.6]} 50. Bd7+
{[%clk 0:00:13.9]} 50... Kxg5 {[%clk 0:00:04.5]} 51. a4 {[%clk 0:00:14.7]} 51...
Kf6 {[%clk 0:00:04.5]} 52. a5 {[%clk 0:00:15.3]} 52... Ke5 {[%clk 0:00:04.5]}
53. axb6 {[%clk 0:00:15.3]} 53... axb6 {[%clk 0:00:05.4]} 54. Bg4 {[%clk
0:00:15.5]} 54... Kd6 {[%clk 0:00:05.6]} 55. Kd3 {[%clk 0:00:14.4]} 55... Kc5
{[%clk 0:00:05.7]} 56. Ke4 {[%clk 0:00:14.8]} 56... g5 {[%clk 0:00:05.3]} 57.
Ke5 {[%clk 0:00:14.8]} 57... f3 {[%clk 0:00:05.1]} 58. Ke4 {[%clk 0:00:15.1]}
58... e2 {[%clk 0:00:05.2]} 0-1

[Event "Early-Titled-Tuesday-Blitz-October-24-2023"]
[Site "Chess.com"]
[Date "2023.10.24"]
[Round "5"]
[White "SashaKuzhilniy"]
[Black "guillembaches"]
[Result "1-0"]
[WhiteElo "2649"]
[BlackElo "2489"]
[TimeControl "180+1"]
[EndTime "8:55:50 PDT"]
[Termination "SashaKuzhilniy won on time"]

1. b3 {[%clk 0:03:00.9]} 1... d5 {[%clk 0:02:59.3]} 2. Bb2 {[%clk 0:03:01.4]}
2... Bf5 {[%clk 0:02:59.6]} 3. d3 {[%clk 0:03:01.4]} 3... e6 {[%clk 0:02:59.7]}
4. Nd2 {[%clk 0:03:01.8]} 4... h6 {[%clk 0:02:59.8]} 5. g3 {[%clk 0:03:01.3]}
5... Nf6 {[%clk 0:02:59.3]} 6. Bg2 {[%clk 0:03:01.8]} 6... c6 {[%clk 0:02:59.1]}
7. e4 {[%clk 0:03:02.2]} 7... Bh7 {[%clk 0:02:58.3]} 8. Qe2 {[%clk 0:03:02.7]}
8... Nbd7 {[%clk 0:02:48.9]} 9. Ngf3 {[%clk 0:03:02.5]} 9... dxe4 {[%clk
0:02:40.9]} 10. dxe4 {[%clk 0:03:01.9]} 10... Bb4 {[%clk 0:02:31.9]} 11. O-O
{[%clk 0:02:59.8]} 11... O-O {[%clk 0:02:25.4]} 12. Rfd1 {[%clk 0:02:58]} 12...
Qc7 {[%clk 0:02:16.7]} 13. a3 {[%clk 0:02:55]} 13... Bxd2 {[%clk 0:02:13.4]} 14.
Nxd2 {[%clk 0:02:52.7]} 14... Rfd8 {[%clk 0:02:10]} 15. Nc4 {[%clk 0:02:51.3]}
15... Ne8 {[%clk 0:02:03.2]} 16. a4 {[%clk 0:02:49.1]} 16... Nb6 {[%clk
0:02:03.1]} 17. Be5 {[%clk 0:02:47.7]} 17... Qe7 {[%clk 0:02:01.9]} 18. Ne3
{[%clk 0:02:43.8]} 18... Rxd1+ {[%clk 0:01:56.2]} 19. Rxd1 {[%clk 0:02:42.4]}
19... Rd8 {[%clk 0:01:55.4]} 20. h4 {[%clk 0:02:36.2]} 20... Rxd1+ {[%clk
0:01:47.1]} 21. Qxd1 {[%clk 0:02:37.1]} 21... Qd7 {[%clk 0:01:45.6]} 22. Qxd7
{[%clk 0:02:34.7]} 22... Nxd7 {[%clk 0:01:45.2]} 23. Bd4 {[%clk 0:02:34.3]}
23... c5 {[%clk 0:01:28.8]} 24. Bc3 {[%clk 0:02:31.2]} 24... Nd6 {[%clk
0:01:25.8]} 25. f3 {[%clk 0:02:31]} 25... b6 {[%clk 0:01:11.8]} 26. Bf1 {[%clk
0:02:30.7]} 26... f5 {[%clk 0:01:07.5]} 27. exf5 {[%clk 0:02:26.3]} 27... Nxf5
{[%clk 0:01:06.1]} 28. Bc4 {[%clk 0:02:07.8]} 28... Nxe3 {[%clk 0:00:55.4]} 29.
Bxe6+ {[%clk 0:02:07.2]} 29... Kf8 {[%clk 0:00:55.3]} 30. Bxd7 {[%clk
0:02:08.1]} 30... Nxc2 {[%clk 0:00:44.9]} 31. Kf2 {[%clk 0:02:03.5]} 31... Bg8
{[%clk 0:00:40.9]} 32. Be5 {[%clk 0:01:37.7]} 32... Bxb3 {[%clk 0:00:39.2]} 33.
Bd6+ {[%clk 0:01:31]} 33... Kf7 {[%clk 0:00:37.4]} 34. Bb8 {[%clk 0:01:23.5]}
34... a6 {[%clk 0:00:32.5]} 35. Ba7 {[%clk 0:01:22.8]} 35... b5 {[%clk
0:00:32.5]} 36. axb5 {[%clk 0:01:22]} 36... axb5 {[%clk 0:00:31.4]} 37. Bxc5
{[%clk 0:01:20.4]} 37... Bc4 {[%clk 0:00:26.1]} 38. Bf5 {[%clk 0:01:18.1]} 38...
Na1 {[%clk 0:00:24.7]} 39. Ke3 {[%clk 0:01:17]} 39... Nb3 {[%clk 0:00:24.7]} 40.
Bb4 {[%clk 0:01:16]} 40... g5 {[%clk 0:00:20.3]} 41. h5 {[%clk 0:01:15.8]} 41...
Kf6 {[%clk 0:00:19.6]} 42. Bc2 {[%clk 0:01:15.5]} 42... Bf7 {[%clk 0:00:16.7]}
43. g4 {[%clk 0:01:15.1]} 43... Kg7 {[%clk 0:00:16.3]} 44. f4 {[%clk 0:01:11.3]}
44... gxf4+ {[%clk 0:00:15.9]} 45. Kxf4 {[%clk 0:01:12.2]} 45... Nc1 {[%clk
0:00:12.9]} 46. Bc3+ {[%clk 0:01:04.5]} 46... Kg8 {[%clk 0:00:12.4]} 47. Ke5
{[%clk 0:01:04.1]} 47... Ne2 {[%clk 0:00:12.4]} 48. Bd2 {[%clk 0:01:01]} 48...
Ng3 {[%clk 0:00:09.7]} 49. Bxh6 {[%clk 0:00:58.8]} 49... Nxh5 {[%clk 0:00:07.8]}
50. Bd2 {[%clk 0:00:42.5]} 50... Ng7 {[%clk 0:00:07.6]} 51. Kf6 {[%clk
0:00:41.6]} 51... Bc4 {[%clk 0:00:07.1]} 52. Be4 {[%clk 0:00:38.7]} 52... Ne6
{[%clk 0:00:06.8]} 53. Bb4 {[%clk 0:00:35.3]} 53... Nf8 {[%clk 0:00:06.4]} 54.
Bf5 {[%clk 0:00:29.3]} 54... Nh7+ {[%clk 0:00:06.2]} 55. Ke5 {[%clk 0:00:28.9]}
55... Kg7 {[%clk 0:00:05.4]} 56. Bc3 {[%clk 0:00:28.6]} 56... Kh6 {[%clk
0:00:04.6]} 57. Kd6 {[%clk 0:00:27.5]} 57... Be2 {[%clk 0:00:04.4]} 58. Bd2+
{[%clk 0:00:27.6]} 58... Kg7 {[%clk 0:00:03.5]} 59. Ke5 {[%clk 0:00:27.9]} 59...
Nf8 {[%clk 0:00:01.7]} 60. Bc3 {[%clk 0:00:25.3]} 60... Ng6+ {[%clk 0:00:01.8]}
61. Ke6+ {[%clk 0:00:25.2]} 61... Kh6 {[%clk 0:00:01.6]} 62. Kf6 {[%clk
0:00:25]} 62... Nf4 {[%clk 0:00:01.4]} 63. Bd2 {[%clk 0:00:24.5]} 1-0